bitfinex-derivatives/quotes_ETHF0:USTF0_20240928
["timestamp","ask_amount","ask_price","bid_price","bid_amount"]
[1727493427812,6.4814,2697.7,2697.5,0.37061]
[1727493428107,6.4814,2697.7,2697.6,0.7687]
[1727493428512,3.2736,2697.7,2697.6,0.7687]
[1727493429407,0.344,2698.1,2697.7,0.92648]
[1727493429616,0.344,2698.3,2698.2,0.37052]
[1727493429817,2.89,2698.4,2698.3,0.37051]
[1727493430203,2.89,2698.6,2698.4,0.37049]
[1727493430400,2.89,2698.6,2698.5,0.77428]
[1727493430809,2.89,2698.6,2698.5,0.4038]
[1727493432310,2.89,2698.6,2698.5,0.77428]
[1727493432913,6.0978,2698.6,2698.5,0.77428]
[1727493433103,6.0978,2698.6,2698.5,0.4038]
[1727493433307,6.0978,2698.6,2698.5,0.77428]
[1727493433715,6.0978,2698.6,2698.5,0.4038]
[1727493438132,6.0978,2698.6,2698.5,0.77428]
[1727493438627,6.0978,2698.6,2698.5,0.4038]
[1727493440915,6.0978,2698.6,2698.5,0.77428]
[1727493441320,6.0978,2698.6,2698.5,0.4038]
[1727493444415,4.5378,2698.6,2698.5,0.4038]
[1727493444816,4.90827,2698.6,2698.2,0.37051]
[1727493445016,1.33,2698.4,2698.3,0.37051]
[1727493445620,5.0356,2698.4,2698.1,0.96773179]
[1727493445826,4.90832,2698.2,2697.9,0.96773179]
[1727493446118,1.33,2698.0,2697.9,0.37056]
[1727493446312,1.33,2698.0,2697.8,0.7708]
[1727493446313,2.89,2698.0,2697.8,0.7708]
[1727493446719,2.89,2698.0,2697.8,1.14137]
[1727493447731,3.26056,2698.0,2697.8,0.4022]
[1727493448214,3.26055,2698.0,2697.6,1.33833179]
[1727493448417,2.89,2698.0,2697.8,0.37057]
[1727493448826,2.89,2698.0,2697.7,0.37058]
[1727493449125,2.89,2698.0,2697.8,0.37057]
[1727493449516,2.89,2698.0,2697.7,0.37058]
[1727493449828,2.89,2698.0,2697.8,0.37057]
[1727493450319,2.89,2698.0,2697.9,0.37056]
[1727493450729,2.89,2698.0,2697.6,0.96773179]
[1727493450730,2.89,2698.0,2697.8,0.37057]
[1727493452725,3.2078,2698.2,2697.6,0.96773179]
[1727493452726,6.0978,2698.2,2697.6,0.96773179]
[1727493453027,6.0978,2698.2,2698.0,0.37054]
[1727493453216,6.0978,2698.2,2697.7,0.96773179]
[1727493453423,6.0978,2698.2,2698.0,0.37054]
[1727493454030,6.0978,2698.2,2698.0,0.37053]
[1727493454224,6.0978,2698.2,2697.9,0.3912]
[1727493454225,6.46833,2698.2,2697.9,0.3912]
[1727493454627,6.46833,2698.2,2697.9,0.76176]
[1727493454830,6.46833,2698.2,2697.9,0.3912]
[1727493455229,6.46833,2698.2,2697.9,0.76176]
[1727493455627,3.2078,2698.1,2697.9,0.76176]
[1727493456729,3.2078,2698.1,2697.9,0.3912]
[1727493457435,3.2078,2698.1,2697.9,0.76176]
[1727493457930,3.2078,2698.1,2698.0,0.37055]
[1727493458120,3.2078,2698.1,2698.0,0.75665]
[1727493459627,0.749,2698.3,2698.1,0.37053]
[1727493459920,3.2078,2698.2,2698.1,0.37053]
[1727493460526,0.749,2698.3,2698.1,0.37053]
[1727493460723,3.2078,2698.2,2698.1,0.37053]
[1727493462333,0.344,2698.7,2698.2,0.37051]
[1727493462334,3.2078,2698.5,2698.2,0.37051]
[1727493462626,3.6649,2698.6,2698.5,0.37048]
[1727493463030,6.0978,2698.8,2698.3,0.96773179]
[1727493463332,6.46824,2698.8,2698.5,0.37047]
[1727493463722,6.0978,2698.8,2698.6,0.37046]
[1727493464230,6.46824,2698.8,2698.5,0.76817]
[1727493464431,0.37045,2698.7,2698.5,0.76817]
[1727493464633,0.37045,2698.7,2698.5,0.3977]
[1727493465331,3.26046,2698.6,2698.4,0.3709]
[1727493465526,3.2078,2698.5,2698.3,0.3705]
[1727493465827,3.6112,2698.5,2698.3,0.3705]
[1727493466423,0.4034,2698.5,2698.3,0.3705]
[1727493466824,2.89,2698.4,2698.2,1.72694179]
[1727493467126,2.89,2698.4,2698.1,1.72246179]
[1727493467127,3.6683,2698.4,2698.1,1.72246179]
[1727493467529,3.6683,2698.4,2698.1,0.75473]
[1727493469130,3.2978,2698.4,2698.2,0.37051]
[1727493469338,0.37051,2698.3,2698.1,0.3842]
[1727493469533,3.6683,2698.4,2698.1,0.75473]
[1727493469734,3.2978,2698.4,2698.1,1.35193179]
[1727493469927,3.2978,2698.4,2698.1,0.75473]
[1727493469928,3.66829,2698.4,2698.1,0.75473]
[1727493470431,0.4078,2698.4,2698.2,0.37052]
[1727493470745,0.4078,2698.4,2698.2,1.33825179]
[1727493472330,0.4078,2698.4,2698.3,1.33824179]
[1727493472833,0.4078,2698.4,2698.3,2.58636391]
[1727493473142,0.4078,2698.4,2698.3,2.58638215]
[1727493473334,0.4078,2698.4,2698.3,2.58890286]
[1727493473640,0.4078,2698.4,2698.3,2.58922672]
[1727493473842,0.4078,2698.4,2698.3,1.34106493]
[1727493474032,0.4078,2698.4,2698.3,2.58958457]
[1727493474331,0.4078,2698.4,2698.3,2.58956959]
[1727493474526,0.4078,2698.4,2698.3,3.07061235]
[1727493475034,0.4078,2698.4,2698.3,2.70010235]
[1727493475529,0.4078,2698.4,2698.3,1.24850466]
[1727493475729,0.4078,2698.4,2698.3,2.70010235]
[1727493476340,0.4078,2698.4,2698.3,3.07061235]
[1727493476736,0.4078,2698.4,2698.3,2.70010235]
[1727493476930,3.6156,2698.4,2698.3,0.9708632]
[1727493477133,0.4078,2698.4,2698.3,1.3413732]
[1727493477436,0.4078,2698.4,2698.3,2.59021857]
[1727493477639,0.4078,2698.4,2698.3,1.61935537]
[1727493477840,0.4078,2698.4,2698.3,2.59020958]
[1727493478433,0.4078,2698.4,2698.3,1.61935537]
[1727493479338,0.4078,2698.4,2698.3,3.07095306]
[1727493480333,0.4078,2698.4,2698.3,1.61935537]
[1727493480640,0.4078,2698.4,2698.3,1.61946696]
[1727493480845,0.4078,2698.4,2698.3,3.07106465]
[1727493481030,0.4078,2698.4,2698.3,2.5903914]
[1727493481232,0.4078,2698.4,2698.3,1.61946696]
[1727493481438,3.6156,2698.4,2698.3,1.24895696]
[1727493481636,3.6156,2698.4,2698.3,0.97093843]
[1727493483840,3.6156,2698.4,2698.3,1.34144843]
[1727493484234,3.6156,2698.4,2698.3,1.61958725]
[1727493484540,3.6156,2698.4,2698.3,3.07118494]
[1727493484740,3.6156,2698.4,2698.3,1.61958725]
[1727493485138,3.2078,2698.4,2698.3,1.61958725]
[1727493485536,3.2078,2698.4,2698.3,2.59070466]
[1727493485737,3.2078,2698.4,2698.3,1.61958725]
[1727493486343,0.4034,2698.5,2698.4,0.37049]
[1727493486639,0.4034,2698.5,2698.4,1.34160592]
[1727493487231,3.96626,2698.7,2698.5,0.37047]
[1727493487439,5.29626,2698.7,2698.6,0.7575]
[1727493488834,5.29626,2698.7,2698.6,0.3847]
[1727493489043,0.37047,2698.6,2698.4,1.71169592]
[1727493489242,0.37047,2698.6,2698.4,2.09639592]
[1727493489243,1.33,2698.5,2698.4,2.09639592]
[1727493490543,1.70048,2698.5,2698.4,1.72591592]
[1727493490741,1.33,2698.5,2698.4,2.09640592]
[1727493494435,1.33,2698.5,2698.4,3.34618248]
[1727493496443,1.70048,2698.5,2698.4,1.35581592]
[1727493496647,1.70048,2698.5,2698.4,0.3847]
[1727493497051,1.70048,2698.5,2698.3,0.97111592]
[1727493497052,0.37049,2698.4,2698.3,0.97111592]
[1727493497252,3.97999,2698.4,2698.3,0.97111592]
[1727493500039,6.4738998,2698.4,2698.1,1.37611592]
[1727493500239,1.70052,2698.2,2698.1,1.37611592]
[1727493500443,1.70052,2698.2,2698.1,0.405]
[1727493500639,1.70052,2698.2,2698.1,1.37611592]
[1727493500840,5.0364,2698.2,2698.0,0.97111592]
[1727493501059,4.90833,2698.1,2698.0,0.97111592]
[1727493501247,0.37055,2698.0,2697.9,0.97111592]
[1727493501453,0.37055,2698.0,2697.6,0.97111592]
[1727493501454,3.6703598,2698.0,2697.6,0.97111592]
[1727493501758,4.5378,2697.7,2697.6,0.97111592]
[1727493501953,4.90839,2697.7,2697.6,0.97111592]
[1727493502160,0.3706,2697.6,2697.5,0.97111592]
[1727493502450,0.3706,2697.6,2697.5,2.22113096]
[1727493502451,0.7728,2697.6,2697.5,2.22113096]
[1727493502662,0.7728,2697.6,2697.5,2.2212023]
[1727493502839,0.7728,2697.6,2697.5,0.97152464]
[1727493503044,0.37062,2697.5,2697.4,0.97152464]
[1727493503246,1.70062,2697.5,2697.4,0.97152464]
[1727493503445,1.70062,2697.5,2697.3,0.97152464]
[1727493503446,0.37063,2697.4,2697.3,0.97152464]
[1727493503648,3.95253,2697.4,2697.2,1.74732464]
[1727493503849,1.33,2697.3,2697.2,2.11798464]
[1727493504244,1.33,2697.3,2697.2,0.7758]
[1727493504444,1.33,2697.3,2697.2,2.11798464]
[1727493504847,1.33,2697.3,2697.2,1.14646]
[1727493505347,1.33,2697.3,2697.2,0.7758]
[1727493508355,0.37068,2697.0,2696.9,0.97152464]
[1727493508562,0.37068,2697.1,2696.7,0.37072]
[1727493508860,0.3718,2697.2,2696.7,0.37072]
[1727493508861,0.3707,2696.9,2696.8,0.7829]
[1727493509058,1.7007,2696.9,2696.8,0.7829]
[1727493509254,1.7122,2696.9,2696.3,0.97152464]
[1727493509450,1.70073,2696.7,2696.5,0.7829]
[1727493510051,4.90853,2696.7,2696.5,0.7829]
[1727493510556,4.5378,2696.7,2696.5,0.7829]
[1727493510858,4.90853,2696.7,2696.5,0.7829]
[1727493511161,3.2078,2696.7,2696.5,1.15365]
[1727493511368,4.5378,2696.7,2696.5,0.7829]
[1727493512150,4.5378,2696.7,2696.5,1.15365]
[1727493512360,4.5378,2696.7,2696.5,0.7829]
[1727493512554,4.90853,2696.7,2696.5,0.7829]
[1727493512964,4.5378,2696.7,2696.5,1.15365]
[1727493513461,4.5378,2696.7,2696.5,0.7829]
[1727493513867,4.5378,2696.7,2696.5,1.15365]
[1727493514158,4.5378,2696.7,2696.5,0.7829]
[1727493515659,4.5378,2696.7,2696.5,1.15365]
[1727493516067,4.5378,2696.7,2696.5,0.7829]
[1727493516256,4.90853,2696.7,2696.5,0.7829]
[1727493516463,1.33,2696.6,2696.5,1.15365]
[1727493516670,3.2078,2696.7,2696.5,1.15365]
[1727493516966,4.5378,2696.7,2696.5,1.15365]
[1727493517563,1.33,2696.7,2696.5,1.15365]
[1727493517865,4.5378,2696.7,2696.5,1.15365]
[1727493518063,4.5378,2696.7,2696.5,0.7829]
[1727493518656,1.33,2696.6,2696.5,0.7829]
[1727493520663,1.33,2696.6,2696.5,1.15365]
[1727493520857,4.5378,2696.7,2696.5,1.15365]
[1727493521561,4.5378,2696.7,2696.6,0.37074]
[1727493521768,1.33,2696.7,2696.6,0.37074]
[1727493522167,1.33,2696.7,2696.5,0.7829]
[1727493522762,1.33,2696.7,2696.6,0.37074]
[1727493526168,3.2078,2697.1,2696.6,3.708]
[1727493526369,1.128,2697.3,2697.2,0.37066]
[1727493526370,0.344,2697.3,2697.2,0.37066]
[1727493526566,1.128,2697.9,2697.2,1.33]
[1727493526773,1.33,2697.8,2697.3,0.369]
[1727493527073,1.33,2697.8,2697.5,0.37061]
[1727493527376,1.33,2697.8,2697.6,0.7455]
[1727493527561,1.33,2697.8,2697.7,0.369]
[1727493528270,4.36236,2697.9,2697.7,0.369]
[1727493528271,7.25236,2697.9,2697.7,0.369]
[1727493528663,3.9918,2697.9,2697.7,0.369]
[1727493529464,6.8818,2697.9,2697.7,0.369]
[1727493529676,7.25236,2697.9,2697.7,0.369]
[1727493529866,7.25236,2697.9,2697.4,0.76422]
[1727493529867,0.37057,2697.8,2697.4,0.3936]
[1727493530072,2.89,2697.7,2697.4,0.3868]
[1727493530377,6.4772,2697.9,2697.4,0.3868]
[1727493530566,0.3967,2697.8,2697.4,0.3868]
[1727493530962,0.76728,2697.8,2697.4,0.75742]
[1727493531876,0.3967,2697.8,2697.5,0.37061]
[1727493532375,0.3967,2697.8,2697.4,0.75742]
[1727493532881,0.76728,2697.8,2697.4,0.75742]
[1727493533973,0.3967,2697.8,2697.5,0.37061]
[1727493534366,0.3967,2697.8,2697.5,0.77091]
[1727493535069,0.76728,2697.8,2697.5,0.4003]
[1727493535976,0.76728,2697.8,2697.5,0.77092]
[1727493537786,0.37059,2697.7,2697.4,0.75742]
[1727493538170,0.37059,2697.7,2697.5,0.37062]
[1727493538367,0.37059,2697.7,2697.4,0.3868]
[1727493538368,0.37059,2697.7,2697.4,0.75742]
[1727493539167,0.76728,2697.8,2697.5,0.37062]
[1727493539679,0.37059,2697.7,2697.4,0.75742]
[1727493542084,0.76728,2697.8,2697.5,0.37061]
[1727493542577,0.76729,2697.8,2697.5,0.37061]
[1727493542773,0.37059,2697.7,2697.5,0.37061]
[1727493543180,0.3967,2697.8,2697.6,0.3706]
[1727493543482,6.84777,2697.9,2697.6,0.3706]
[1727493543777,0.37058,2697.8,2697.5,0.3706]
[1727493543976,0.75638,2697.8,2697.5,0.37061]
[1727493544287,3.2078,2697.7,2697.5,0.37061]
[1727493544477,3.57839,2697.7,2697.5,0.37061]
[1727493544677,3.2078,2697.7,2697.5,0.37061]
[1727493544876,3.2078,2697.7,2697.4,0.3868]
[1727493544877,3.2078,2697.7,2697.6,0.3706]
[1727493545483,3.2078,2697.7,2697.5,0.37061]
[1727493545882,3.57839,2697.7,2697.5,0.37061]
[1727493546080,3.2078,2697.7,2697.5,0.37061]
[1727493546276,3.2078,2697.7,2697.4,0.3868]
[1727493546582,3.2078,2697.7,2697.6,0.3706]
[1727493548280,0.3794,2697.9,2697.8,0.37057]
[1727493548481,0.3794,2697.9,2697.7,0.7806]
[1727493548684,0.74417,2697.8,2697.5,0.37061]
[1727493548886,0.74417,2697.8,2697.5,0.75451]
[1727493549385,0.3736,2697.8,2697.6,0.3706]
[1727493549584,0.3736,2697.8,2697.5,0.3839]
[1727493550291,0.3736,2697.8,2697.6,0.3706]
[1727493550292,1.33,2697.7,2697.6,0.3706]
[1727493551887,1.33,2697.7,2697.5,0.3839]
[1727493551888,1.7094,2697.9,2697.5,0.3839]
[1727493552088,0.3794,2697.9,2697.8,0.37057]
[1727493552293,4.5378,2698.0,2697.9,0.37056]
[1727493552589,4.5378,2698.0,2697.5,1.7139]
[1727493552590,4.90835,2698.0,2697.8,0.37057]
[1727493552893,4.5378,2698.0,2697.9,0.75606]
[1727493554397,0.3865,2698.2,2697.9,5.4219]
[1727493554697,0.344,2698.6,2698.0,5.7959]
[1727493554992,4.5378,2698.7,2698.2,1.33]
[1727493555203,4.90826,2698.7,2698.3,0.756]
[1727493555402,3.57826,2698.7,2698.3,0.756]
[1727493555692,1.70047,2698.6,2698.3,0.756]
[1727493556093,1.33,2698.6,2698.4,0.37049]
[1727493556294,3.57826,2698.7,2698.4,0.37049]
[1727493556591,1.33,2698.5,2698.4,0.37049]
[1727493557196,1.33,2698.5,2698.3,0.756]
[1727493557401,1.33,2698.5,2698.4,0.37049]
[1727493558289,1.33,2698.5,2698.3,0.756]
[1727493558500,1.33,2698.5,2698.4,0.37049]
[1727493559585,1.33,2698.5,2698.3,0.3855]
[1727493560091,0.3783,2698.4,2698.3,0.3855]
[1727493560489,1.7083,2698.4,2698.3,0.3855]
[1727493561295,1.7083,2698.4,2698.3,0.75601]
[1727493565809,0.3783,2698.4,2698.3,0.75601]
[1727493568814,1.33,2698.5,2698.4,0.37049]
[1727493569606,1.33,2698.5,2698.3,0.3855]
[1727493569607,0.3707,2698.6,2698.5,0.37048]
[1727493571407,3.2078,2698.7,2698.6,0.37046]
[1727493571600,0.3756,2698.8,2698.7,0.37045]
[1727493572019,0.3756,2698.8,2698.7,0.76385]
[1727493572308,1.7056,2698.8,2698.7,0.76385]
[1727493577311,0.3756,2698.8,2698.7,0.76385]
[1727493578208,3.2078,2698.9,2698.8,0.37044]
[1727493578822,3.2078,2698.9,2698.8,4.07604]
[1727493579407,2.85037,2699.3,2699.0,0.3704]
[1727493579813,2.85037,2699.3,2699.1,0.3677]
[1727493580315,5.6878,2699.3,2699.1,0.7381]
[1727493580711,6.05817,2699.3,2699.1,0.7381]
[1727493581219,6.05817,2699.3,2699.1,0.3677]
[1727493585431,5.3116,2699.3,2699.2,0.37038]
[1727493585634,5.3116,2699.3,2699.2,0.74498]
[1727493586233,2.1038,2699.3,2699.2,0.3746]
[1727493586438,2.1038,2699.3,2699.2,0.74498]
[1727493587124,1.7248,2699.3,2699.2,0.74498]
[1727493589232,1.7248,2699.3,2699.2,0.3746]
[1727493589828,1.7248,2699.3,2699.2,0.74498]
[1727493590228,1.7248,2699.3,2699.2,0.3746]
[1727493590430,1.7248,2699.3,2699.2,0.74498]
[1727493590631,1.7248,2699.3,2699.2,0.3746]
[1727493590836,1.7248,2699.3,2699.2,0.74498]
[1727493591133,1.7248,2699.3,2699.2,0.3746]
[1727493592137,2.09517,2699.3,2699.2,0.3746]
[1727493592342,1.7248,2699.3,2699.1,0.73809]
[1727493599028,0.3948,2699.3,2699.2,0.37038]
[1727493599234,2.3329598,2699.3,2699.1,0.73809]
[1727493599536,0.3948,2699.3,2699.1,0.73809]
[1727493600041,2.3329598,2699.3,2699.1,0.73809]
[1727493601139,2.3329598,2699.3,2699.2,0.37038]
[1727493601343,2.3329598,2699.3,2699.1,0.73809]
[1727493602345,0.3948,2699.3,2699.1,0.73809]
[1727493603540,0.3948,2699.3,2699.2,0.37038]
[1727493603843,0.3948,2699.3,2699.2,0.74228]
[1727493605239,0.3911,2699.4,2699.2,0.74228]
[1727493606147,0.3911,2699.4,2699.2,0.3719]
[1727493606342,0.37037,2699.3,2699.2,0.3719]
[1727493606650,0.76146,2699.4,2699.2,0.3719]
[1727493607440,0.3911,2699.4,2699.2,0.3719]
[1727493608045,0.3911,2699.4,2699.2,0.74228]
[1727493609043,0.76146,2699.4,2699.2,0.74228]
[1727493609243,0.76146,2699.4,2699.2,0.3719]
[1727493609444,0.76146,2699.4,2699.2,0.74228]
[1727493610344,0.76146,2699.4,2699.2,0.3719]
[1727493612150,0.37037,2699.3,2699.2,0.3719]
[1727493612451,0.37037,2699.3,2699.0,0.3762]
[1727493612452,0.37039,2699.2,2699.0,0.37041]
[1727493612649,0.4016,2699.1,2699.0,0.37041]
[1727493614357,0.4016,2699.1,2699.0,1.34193464]
[1727493614750,0.4016,2699.1,2699.0,0.37041]
[1727493615454,0.4016,2699.1,2699.0,1.34193464]
[1727493615844,0.37037,2699.3,2699.0,1.34193464]
[1727493616044,0.37037,2699.3,2699.1,0.3965]
[1727493616451,0.37037,2699.3,2699.2,0.3815]
[1727493617354,2.79711903,2699.3,2699.2,0.3815]
[1727493620545,0.37037,2699.3,2699.2,0.3815]
[1727493620750,2.79193361,2699.3,2699.2,0.3815]
[1727493621054,0.37037,2699.3,2699.2,0.3815]
[1727493625452,2.30929927,2699.3,2699.2,1.35302464]
[1727493625859,1.93892927,2699.3,2699.2,1.35302464]
[1727493627161,2.30929927,2699.3,2699.2,1.35302464]
[1727493629662,2.30929927,2699.3,2699.2,2.6017809]
[1727493630359,2.30929927,2699.3,2699.2,2.2202809]
[1727493630551,6.78302158,2699.4,2699.2,0.97152464]
[1727493630757,1.93954755,2699.3,2699.2,0.97152464]
[1727493630967,2.30991755,2699.3,2699.2,0.97152464]
[1727493631465,0.37037,2699.3,2699.2,2.2204961]
[1727493631962,3.7048,2699.3,2699.0,1.34193464]
[1727493632161,2.81796154,2699.2,2699.0,1.34193464]
[1727493632359,3.18835154,2699.2,2699.0,1.34193464]
[1727493632557,0.757,2699.1,2699.0,1.34193464]
[1727493633765,0.757,2699.1,2698.9,1.12421]
[1727493633973,0.3866,2699.1,2699.0,0.37041]
[1727493635161,0.757,2699.1,2698.9,2.45421]
[1727493635353,0.757,2699.1,2699.0,0.37041]
[1727493635654,0.3866,2699.1,2699.0,0.37041]
[1727493635855,0.757,2699.1,2699.0,0.37041]
[1727493637065,0.757,2699.1,2699.0,1.34278978]
[1727493637661,0.757,2699.1,2699.0,0.97237978]
[1727493637860,2.69673051,2699.1,2699.0,0.97237978]
[1727493639465,0.757,2699.1,2699.0,0.97237978]
[1727493639668,0.37041,2699.0,2698.9,3.42658668]
[1727493639966,0.37041,2699.0,2698.9,2.97496905]
[1727493639967,2.68640846,2699.0,2698.9,2.97496905]
[1727493640167,0.74671,2699.0,2698.9,0.7538]
[1727493640369,0.3763,2699.0,2698.7,0.3721]
[1727493640570,0.3763,2699.0,2698.6,0.75466]
[1727493640571,2.90919058,2698.9,2698.6,0.75466]
[1727493640875,0.37044,2698.8,2698.6,0.75466]
[1727493641171,3.67543058,2698.8,2698.6,0.75466]
[1727493642473,6.88323058,2698.8,2698.6,0.75466]
[1727493643377,6.51279058,2698.8,2698.7,0.37045]
[1727493643578,3.30499058,2698.8,2698.7,0.37045]
[1727493643769,0.3958,2698.8,2698.7,0.37045]
[1727493643964,3.30499058,2698.8,2698.7,0.37045]
[1727493644275,0.76624,2698.8,2698.7,0.37045]
[1727493644484,3.67543058,2698.8,2698.6,2.08466]
[1727493644868,0.37045,2698.7,2698.6,2.08466]
[1727493645881,0.37045,2698.7,2698.6,1.7142]
[1727493646782,3.27964058,2698.7,2698.6,0.3842]
[1727493647183,2.79458742,2698.7,2698.6,0.3842]
[1727493647475,0.37045,2698.7,2698.6,0.3842]
[1727493647779,1.93751038,2698.7,2698.5,0.3709]
[1727493647987,0.37046,2698.6,2698.5,0.3709]
[1727493655105,2.30797038,2698.6,2698.5,0.3709]
[1727493656695,0.37046,2698.6,2698.5,0.3709]
[1727493656900,2.30797038,2698.6,2698.5,0.3709]
[1727493657100,0.37046,2698.6,2698.5,0.3709]
[1727493658305,2.30797038,2698.6,2698.5,0.3709]
[1727493658491,0.37046,2698.6,2698.5,0.3709]
[1727493659197,2.30797038,2698.6,2698.5,0.3709]
[1727493659395,0.37046,2698.6,2698.5,0.3709]
[1727493660900,2.30797038,2698.7,2698.5,0.3709]
[1727493661108,0.37046,2698.6,2698.5,0.3709]
[1727493662004,0.37048,2698.5,2698.4,0.7861]
[1727493662199,1.14988,2698.5,2698.4,0.3825]
[1727493662405,0.3705,2698.4,2698.2,0.37051]
[1727493662605,0.3705,2698.4,2698.2,0.76411]
[1727493663298,1.14989,2698.5,2698.3,0.3705]
[1727493663504,1.14989,2698.5,2698.2,2.09411]
[1727493665097,0.37049,2698.4,2698.2,2.09411]
[1727493666804,0.7794,2698.5,2698.2,1.7236]
[1727493667007,0.37049,2698.4,2698.2,2.09411]
[1727493668415,0.37049,2698.4,2698.2,2.09412]
[1727493671211,1.14988,2698.5,2698.3,0.37051]
[1727493671403,1.14988,2698.5,2698.2,1.7236]
[1727493671611,1.14988,2698.5,2698.2,2.09411]
[1727493672114,3.08739038,2698.5,2698.2,2.09411]
[1727493672313,1.14988,2698.5,2698.2,2.09411]
[1727493672913,3.08739038,2698.5,2698.2,2.09411]
[1727493673223,1.14988,2698.5,2698.2,2.09411]
[1727493673517,3.08739038,2698.5,2698.2,2.09411]
[1727493673713,0.37049,2698.4,2698.2,2.09411]
[1727493674820,2.30800038,2698.4,2698.2,2.09411]
[1727493676213,1.93751038,2698.4,2698.1,0.4056]
[1727493676420,0.37055,2698.0,2697.9,0.3673]
[1727493676623,2.30479714,2698.0,2697.9,0.3673]
[1727493677316,0.37055,2698.0,2697.9,0.3673]
[1727493680715,4.37814,2698.1,2697.9,0.3673]
[1727493681216,0.37055,2698.0,2697.9,0.3673]
[1727493683218,1.17034,2698.1,2697.9,0.3673]
[1727493683422,4.37814,2698.1,2697.9,0.3673]
[1727493683817,0.37055,2698.0,2697.9,0.3673]
[1727493684323,0.37057,2697.8,2697.7,0.3805]
[1727493686326,0.73937,2697.8,2697.7,0.3805]
[1727493688124,5.27717,2697.8,2697.7,0.3805]
[1727493688323,0.3706,2697.7,2697.5,0.7681]
[1727493688526,0.7724,2697.7,2697.5,1.1501]
[1727493688829,0.4018,2697.7,2697.5,1.52071]
[1727493689023,0.77239,2697.7,2697.5,1.1501]
[1727493689526,0.77239,2697.7,2697.5,1.52072]
[1727493690241,0.4018,2697.7,2697.5,1.52072]
[1727493691027,0.77239,2697.7,2697.5,1.52072]
[1727493691827,0.4018,2697.7,2697.6,0.3706]
[1727493692026,0.73938,2697.8,2697.6,0.3706]
[1727493692227,0.37058,2697.8,2697.6,0.3706]
[1727493693232,0.37057,2697.9,2697.6,0.3706]
[1727493693533,0.37055,2698.0,2697.6,0.97237668]
[1727493693733,0.37055,2698.0,2697.7,0.37058]
[1727493694129,4.5378,2698.1,2697.8,0.3773]
[1727493694327,4.5378,2698.1,2697.9,0.3867]
[1727493694523,0.37056,2698.0,2697.9,0.3867]
[1727493694926,4.07696,2698.0,2697.9,0.3867]
[1727493699132,4.07696,2698.0,2697.8,0.3773]
[1727493699133,0.37056,2697.9,2697.8,0.3773]
[1727493699435,0.75316,2697.9,2697.8,0.3773]
[1727493701040,3.96096,2697.9,2697.8,0.3773]
[1727493701733,5.29096,2697.9,2697.8,0.3773]
[1727493705837,0.37059,2697.7,2697.6,0.387]
[1727493711149,0.3706,2697.6,2697.5,0.7902]
[1727493711445,5.2962,2697.6,2697.5,0.403]
[1727493712440,3.9662,2697.6,2697.5,0.403]
[1727493712641,3.2078,2697.6,2697.5,0.77362]
[1727493713251,3.5784,2697.6,2697.5,0.403]
[1727493713636,3.5784,2697.6,2697.5,0.7948]
[1727493714651,3.5784,2697.6,2697.5,1.16542]
[1727493714652,3.2078,2697.6,2697.5,1.16542]
[1727493715152,0.3706,2697.6,2697.5,1.16542]
[1727493715451,0.3706,2697.6,2697.5,0.7948]
[1727493717553,0.3706,2697.6,2697.5,1.76717668]
[1727493717857,0.3706,2697.7,2697.5,2.13779668]
[1727493718250,0.3706,2697.7,2697.5,0.7948]
[1727493718251,0.3706,2697.6,2697.5,0.7948]
[1727493718452,0.3706,2697.6,2697.5,1.76717668]
[1727493720343,0.37063,2697.4,2697.3,1.35647668]
[1727493720551,0.37063,2697.4,2697.3,3.09033971]
[1727493720751,3.57843,2697.4,2697.3,1.63177004]
[1727493720953,3.57843,2697.4,2697.3,2.21936943]
[1727493720954,3.98633,2697.4,2697.3,2.21936943]
[1727493721252,0.37071,2696.8,2696.7,0.97167435]
[1727493721459,0.37073,2696.7,2696.6,0.97167435]
[1727493721665,0.37073,2696.7,2696.5,2.12357435]
[1727493721951,2.49362,2696.8,2696.5,2.49432435]
[1727493722149,0.37073,2696.7,2696.5,2.12357435]
[1727493722548,0.37073,2696.7,2696.5,1.1519]
[1727493722949,1.70074,2696.6,2696.5,0.3995]
[1727493725653,0.77862,2696.8,2696.5,0.77025]
[1727493725856,0.4079,2696.8,2696.5,0.3995]
[1727493726057,0.4079,2696.8,2696.6,0.37074]
[1727493726257,0.4079,2696.8,2696.5,0.77025]
[1727493726563,0.77862,2696.8,2696.5,0.77025]
[1727493727056,5.3092,2696.9,2696.6,0.37073]
[1727493728060,4.9385,2696.9,2696.6,0.37073]
[1727493728360,0.37072,2696.8,2696.6,0.37074]
[1727493728657,0.37071,2696.8,2696.6,0.37074]
[1727493728851,0.37071,2696.8,2696.5,0.77024]
[1727493729255,0.37071,2696.8,2696.6,0.37074]
[1727493729954,5.30921,2696.9,2696.6,0.37074]
[1727493730165,0.37071,2696.8,2696.7,0.4039]
[1727493733360,3.57851,2696.8,2696.7,0.4039]
[1727493737270,0.37071,2696.8,2696.7,0.4039]
[1727493738279,0.37074,2696.7,2696.5,0.77025]
[1727493738474,0.37073,2696.7,2696.5,1.14525]
[1727493738676,0.37073,2696.7,2696.5,0.7745]
[1727493739075,4.9385,2696.9,2696.5,0.7745]
[1727493739076,0.37072,2696.8,2696.6,0.37074]
[1727493739275,0.37072,2696.8,2696.7,0.3736]
[1727493740574,3.57852,2696.8,2696.7,0.3736]
[1727493746085,0.37072,2696.8,2696.7,0.3736]
[1727493746287,3.57852,2696.8,2696.7,0.3736]